{"text_format":"1","workbook":"xlsx","n_sheets":5,"sheets":["CPUL","Prerrequisitos","Electivas","Hoja1","Cómo voy"],"not_rendered":{"charts":0,"images":0,"macros":1,"external_links":0,"defined_names":1,"comments":0,"pivot_tables":0},"unopened":[],"bounds":{"document_bytes":16777216,"sheet_cells":100000,"rows_first":2000,"rows_last":500,"rows_between":2000,"halvings":0,"cell_chars":16384,"cell_head_chars":4096},"cells_cut":0,"cells_raw":0,"read":"whole","date_system":"1900"}

{"sheet":"CPUL","index":0,"n_rows":60,"n_cols":27,"rows_kept":60,"cut":false,"hidden":false,"merged":[[27,24,27,25],[28,24,29,26],[44,14,45,16],[43,18,61,20],[38,24,38,25],[39,24,40,26],[44,24,44,25],[45,24,46,26],[55,24,55,25],[56,24,57,26],[49,14,50,16],[34,24,35,26],[37,18,37,19],[38,18,39,20],[58,10,58,11],[54,2,55,4],[54,6,55,8],[54,10,55,12],[50,24,50,25],[51,24,52,26],[59,14,60,16],[48,2,48,3],[48,6,48,7],[48,10,48,11],[48,14,48,15],[58,14,58,15],[49,10,50,12],[44,2,45,4],[44,6,45,8],[44,10,45,12],[33,18,34,20],[32,10,32,11],[32,14,32,15],[33,14,34,16],[37,14,37,15],[59,2,60,4],[59,6,60,8],[59,10,60,12],[58,2,58,3],[58,6,58,7],[43,2,43,3],[43,6,43,7],[43,10,43,11],[43,14,43,15],[54,14,55,16],[53,2,53,3],[53,6,53,7],[53,10,53,11],[53,14,53,15],[49,2,50,4],[49,6,50,8],[13,18,14,20],[17,18,17,19],[18,18,19,20],[22,18,22,19],[22,10,22,11],[23,10,24,12],[27,10,27,11],[28,10,29,12],[27,14,27,15],[28,14,29,16],[17,14,17,15],[18,14,19,16],[22,14,22,15],[23,14,24,16],[37,2,37,3],[38,2,39,4],[23,18,24,20],[27,18,27,19],[28,18,29,20],[32,18,32,19],[12,6,12,7],[12,10,12,11],[13,10,14,12],[12,14,12,15],[13,14,14,16],[17,10,17,11],[18,10,19,12],[37,6,37,7],[38,6,39,8],[17,6,17,7],[22,6,22,7],[27,6,27,7],[38,14,39,16],[33,10,34,12],[37,10,37,11],[38,10,39,12],[33,2,34,4],[33,6,34,8],[12,24,12,27],[17,24,17,25],[23,24,24,26],[18,24,19,26],[33,24,33,25],[9,1,9,27],[22,24,22,25],[32,6,32,7],[18,2,19,4],[18,6,19,8],[23,2,24,4],[23,6,24,8],[28,2,29,4],[28,6,29,8],[13,2,14,4],[13,6,14,8],[13,24,13,27],[14,24,14,27],[12,2,12,3],[17,2,17,3],[22,2,22,3],[27,2,27,3],[32,2,32,3],[12,18,12,19]]}
[]
[]
[]
[]
[]
[]
[]
[]
[]
[null,"Lleva el control de tu avance curricular"]
[]
[]
[null,null,"CBAS-1103",null,{"$f":"MAX(C16:E16)","v":0},null,"CBAS-2413",null,{"$f":"MAX(G16:I16)","v":0},null,"CBAS-2423",null,{"$f":"MAX(K16:M16)","v":0},null,"CBAS-2603",null,{"$f":"MAX(O16:Q16)","v":0},null,"FNEG-3183",null,{"$f":"MAX(S16:U16)","v":0},null,null,4,"Módulo aprobado"]
[null,null,"Cátedra de Desarrollo Universitario",null,null,null,"Cálculo I",null,null,null,"Cálculo II",null,null,null,"Estadistica I",null,null,null,"Matemáticas Financieras",null,null,null,null,2,"Módulo reprobado"]
[null,null,null,null,null,null,null,null,null,null,null,null,null,null,null,null,null,null,null,null,null,null,null,0,"Módulo pendiente por cursar"]
[]
[]
[null,null,"CHUM-1903",null,{"$f":"MAX(C21:E21)","v":0},null,"CHUM-1913",null,{"$f":"MAX(G21:I21)","v":0},null,"CHUM-1923",null,{"$f":"MAX(K21:M21)","v":0},null,"CHUM-1933",null,{"$f":"MAX(O21:Q21)","v":0},null,"CHUM-1203",null,{"$f":"MAX(S21:U21)","v":0},null,null,null,"CHUM-1323",null,{"$f":"MAX(Y21:AA21)","v":0}]
[null,null,"Ingles I",null,null,null,"Ingles II",null,null,null,"Ingles III",null,null,null,"Ingles IV",null,null,null,"Habilidades de Pensamiento",null,null,null,null,null,"Constitución Política y Civilidad"]
[]
[]
[]
[null,null,"CHUM-1213",null,{"$f":"MAX(C26:E26)","v":0},null,"CHUM-1333",null,{"$f":"MAX(G26:I26)","v":0},null,"AEMP-1713",null,{"$f":"MAX(K26:M26)","v":0},null,"AEMP-1413",null,{"$f":"MAX(O26:Q26)","v":0},null,"CPUL-1403",null,{"$f":"MAX(S26:U26)","v":0},null,null,null,"CPUL-H022",null,{"$f":"MAX(Y26:AA26)","v":0}]
[null,null,"Composición de Textos Cientificos",null,null,null,"Ética y Profesionalismo",null,null,null,"Liderazgo y Emprendimiento",null,null,null,"Procesos Administrativos",null,null,null,"Contabilidad Financiera",null,null,null,null,null,{"$f":"Electivas!W21","v":"Electiva Socio humanística II"}]
[]
[]
[]
[null,null,"CPUL-1413",null,{"$f":"MAX(C31:E31)","v":0},null,"CPUL-1433",null,{"$f":"MAX(G31:I31)","v":0},null,"CPUL-1743",null,{"$f":"MAX(K31:M31)","v":0},null,"CPUL-1763",null,{"$f":"MAX(O31:Q31)","v":0},null,"CPUL-1783",null,{"$f":"MAX(S31:U31)","v":0},null,null,null,"CPUL-H032",null,{"$f":"MAX(Y31:AA31)","v":0}]
[null,null,"Contabilidad Financiera Intermedia",null,null,null,"Contabilidad de Costos",null,null,null,"Presupuesto",null,null,null,"Impuestos I",null,null,null,"Auditoria Financiera",null,null,null,null,null,{"$f":"Electivas!W26","v":"Electiva Socio humanística III"}]
[]
[]
[]
[null,null,"CPUL-1833",null,{"$f":"MAX(C36:E36)","v":0},null,"CPUL-2803",null,{"$f":"MAX(G36:I36)","v":0},null,"CPUL-2813",null,{"$f":"MAX(K36:M36)","v":0},null,"CPUL-2613",null,{"$f":"MAX(O36:Q36)","v":0},null,"CPUL-H012",null,{"$f":"MAX(S36:U36)","v":0}]
[null,null,"Auditoria Interna",null,null,null,"Derecho Comercial",null,null,null,"Derecho Laboral",null,null,null,"Fundamentos de Contabilidad Internacional",null,null,null,{"$f":"Electivas!W16","v":"Electiva Socio humanística I"},null,null,null,null,null,"CHUM-1943",null,{"$f":"MAX(Y37:AA37)","v":0}]
[null,null,null,null,null,null,null,null,null,null,null,null,null,null,null,null,null,null,null,null,null,null,null,null,"Inglés V"]
[]
[]
[null,null,"CPUL-NP12",null,{"$f":"MAX(C41:E41)","v":0},null,"CPUL-NP22",null,{"$f":"MAX(G41:I41)","v":0},null,"CPUL-NP32",null,{"$f":"MAX(K41:M41)","v":0},null,"CPUL-NP42",null,{"$f":"MAX(O41:Q41)","v":0},null,"CPUL-NP52",null,{"$f":"MAX(S41:U41)","v":0}]
[null,null,{"$f":"Electivas!J16","v":"Electiva I"},null,null,null,{"$f":"Electivas!J21","v":"Electiva II"},null,null,null,{"$f":"Electivas!J26","v":"Electiva III"},null,null,null,{"$f":"Electivas!J31","v":"ElectivaIV"},null,null,null,{"$f":"Electivas!J36","v":"Electiva V"},null,null,null,null,null,"CHUM-1953",null,{"$f":"MAX(Y42:AA42)","v":0}]
[null,null,null,null,null,null,null,null,null,null,null,null,null,null,null,null,null,null,null,null,null,null,null,null,"Inglés VI"]
[]
[]
[]
[null,null,"FNEG-1243",null,{"$f":"MAX(C47:E47)","v":0},null,"FNEG-1413",null,{"$f":"MAX(G47:I47)","v":0},null,"FNEG-3283",null,{"$f":"MAX(K47:M47)","v":0},null,"CPUL-1423",null,{"$f":"MAX(O47:Q47)","v":0},null,"Nota: Para cursar la Práctica Profesional, debe tener aprobado el 70% del plan de estudios.\n\nNota: Debe cumplir con una de las opciones académicas para acceder al grado. Trabajo de grado o Minor. "]
[null,null,"Elect de Informática Aplicada",null,null,null,"Finanzas I",null,null,null,"Análisis Financiero y Proyecciones",null,null,null,"Contabilidad Financiera Avanzada",null,null,null,null,null,null,null,null,null,"CBAS-2613",null,{"$f":"MAX(Y48:AA48)","v":0}]
[null,null,null,null,null,null,null,null,null,null,null,null,null,null,null,null,null,null,null,null,null,null,null,null,"Estadística II"]
[]
[]
[null,null,"CPUL-1713",null,{"$f":"MAX(C52:E52)","v":0},null,"CPUL-1723",null,{"$f":"MAX(G52:I52)","v":0},null,"CPUL-2792",null,{"$f":"MAX(K52:M52)","v":0},null,"CPUL-1703",null,{"$f":"MAX(O52:Q52)","v":0}]
[null,null,"Contabilidad Gerencial I",null,null,null,"Contabilidad Gerencial II",null,null,null,"Contabilidad Internacional",null,null,null,"Costos Modernos"]
[null,null,null,null,null,null,null,null,null,null,null,null,null,null,null,null,null,null,null,null,null,null,null,null,"CPUL-1903",null,{"$f":"MAX(Y54:AA54)","v":0}]
[null,null,null,null,null,null,null,null,null,null,null,null,null,null,null,null,null,null,null,null,null,null,null,null,"Práctica Profesional"]
[]
[null,null,"CPUL-2723",null,{"$f":"MAX(C57:E57)","v":0},null,"CPUL-1733",null,{"$f":"MAX(G57:I57)","v":0},null,"ECON-1403",null,{"$f":"MAX(K57:M57)","v":0},null,"ECON-1413",null,{"$f":"MAX(O57:Q57)","v":0}]
[null,null,"Revisoría Fiscal",null,null,null,"Teoría Contable",null,null,null,"Fundamentos de Economía",null,null,null,"Microeconomía"]
[null,null,null,null,null,null,null,null,null,null,null,null,null,null,null,null,null,null,null,null,null,null,null,null,null,null,{"$f":"MAX(Y59:AA59)","v":0}]
[null,null,null,null,null,null,null,null,null,null,null,null,null,null,null,null,null,null,null,null,null,null,null,null,"Trabajo de Grado / Minor"]
[]
[null,null,"ECON-1443",null,{"$f":"MAX(C62:E62)","v":0},null,"AEMP-1733",null,{"$f":"MAX(G62:I62)","v":0},null,"AEMP-1403",null,{"$f":"MAX(K62:M62)","v":0},null,"CPUL-1773",null,{"$f":"MAX(O62:Q62)","v":0}]
[null,null,"Macroeconomía",null,null,null,"Gestión de Proyectos",null,null,null,"Teoría Administrativa",null,null,null,"Impuestos II"]

{"sheet":"Prerrequisitos","index":1,"n_rows":56,"n_cols":33,"rows_kept":56,"cut":false,"hidden":false,"merged":[[32,2,32,3],[37,2,37,3],[42,2,42,3],[37,8,37,9],[42,8,42,9],[33,2,34,4],[33,8,34,10],[38,2,39,4],[38,8,39,10],[9,1,9,35],[17,8,17,9],[32,8,32,9],[17,2,17,3],[27,8,27,9],[22,8,22,9],[27,2,27,3],[22,2,22,3],[23,2,24,4],[18,8,19,10],[18,2,19,4],[23,8,24,10],[28,2,29,4],[28,8,29,10],[27,14,30,16],[32,14,35,16],[37,14,40,16],[47,8,47,9],[48,8,49,10],[52,8,52,9],[53,8,54,10],[43,8,44,10],[47,2,47,3],[48,2,49,4],[52,2,52,3],[53,2,54,4],[43,2,44,4],[37,20,37,21],[38,20,39,22],[17,20,17,21],[18,20,19,22],[22,20,22,21],[23,20,24,22],[27,20,27,21],[17,14,20,16],[22,14,25,16],[28,20,29,22],[32,20,32,21],[33,20,34,22],[42,26,42,27],[43,26,44,28],[47,26,47,27],[47,14,50,16],[52,14,55,16],[42,14,45,16],[48,26,49,28],[52,26,52,27],[53,26,54,28],[48,20,49,22],[52,20,52,21],[53,20,54,22],[42,20,42,21],[43,20,44,22],[47,20,47,21],[28,26,29,28],[32,26,32,27],[33,26,34,28],[37,26,37,27],[38,26,39,28],[17,26,17,27],[18,26,19,28],[22,26,22,27],[23,26,24,28],[27,26,27,27],[42,32,45,34],[47,32,50,34],[52,32,55,34],[17,32,20,34],[22,32,25,34],[27,32,30,34],[32,32,35,34],[37,32,40,34]]}
[]
[]
[]
[]
[]
[]
[]
[]
[]
[null,"Lleva el control de tu avance curricular"]
[]
[]
[]
[]
[]
[]
[]
[null,null,"AEMP-1713",null,{"$f":"MAX(C21:E21)","v":0},null,null,null,"AEMP-1733",null,{"$f":"MAX(I21:K21)","v":0},null,null,null,{"$f":"IF(OR(AND(ISNUMBER(C21),C21>=3),AND(ISNUMBER(D21),D21>=3),AND(ISNUMBER(E21),E21>=3)),\"Puede cursar Gestión de Proyectos\",\"Tiene pendiente por aprobar Liderazgo y Emprendimiento\")","v":"Tiene pendiente por aprobar Liderazgo y Emprendimiento"},null,null,null,null,null,"FNEG-3283",null,{"$f":"MAX(U21:W21)","v":0},null,null,null,"CPUL-2792",null,{"$f":"MAX(AA21:AC21)","v":0},null,null,null,{"$f":"IF(OR(AND(ISNUMBER(U21),U21>=3),AND(ISNUMBER(V21),V21>=3),AND(ISNUMBER(W21),W21>=3)),\"Puede cursar Contabilidad Internacional\",\"Tiene pendiente por aprobarAnálisis Financiero y Proyecciones\")","v":"Tiene pendiente por aprobarAnálisis Financiero y Proyecciones"}]
[null,null,"Liderazgo y Emprendimiento",null,null,null,null,null,"Gestión de Proyectos",null,null,null,null,null,null,null,null,null,null,null,"Análisis Financiero y Proyecciones",null,null,null,null,null,"Contabilidad Internacional"]
[]
[null,null,{"$f":"IF(CPUL!K26=\"\",\"\",CPUL!K26)","v":""},{"$f":"IF(CPUL!L26=\"\",\"\",CPUL!L26)","v":""},{"$f":"IF(CPUL!M26=\"\",\"\",CPUL!M26)","v":""},null,null,null,{"$f":"IF(CPUL!G62=\"\",\"\",CPUL!G62)","v":""},{"$f":"IF(CPUL!H62=\"\",\"\",CPUL!H62)","v":""},{"$f":"IF(CPUL!I62=\"\",\"\",CPUL!I62)","v":""},null,null,null,null,null,null,null,null,null,{"$f":"IF(CPUL!K47=\"\",\"\",CPUL!K47)","v":""},{"$f":"IF(CPUL!L47=\"\",\"\",CPUL!L47)","v":""},{"$f":"IF(CPUL!M47=\"\",\"\",CPUL!M47)","v":""},null,null,null,{"$f":"IF(CPUL!K52=\"\",\"\",CPUL!K52)","v":""},{"$f":"IF(CPUL!L52=\"\",\"\",CPUL!L52)","v":""},{"$f":"IF(CPUL!M52=\"\",\"\",CPUL!M52)","v":""}]
[]
[null,null,"CPUL-1413",null,{"$f":"MAX(C26:E26)","v":0},null,null,null,"CPUL-1423",null,{"$f":"MAX(I26:K26)","v":0},null,null,null,{"$f":"IF(OR(AND(ISNUMBER(C26),C26>=3),AND(ISNUMBER(D26),D26>=3),AND(ISNUMBER(E26),E26>=3)),\"Puede cursar Contabilidad Financiera Avanzada\",\"Tiene pendiente por aprobar Contabilidad Financiera Intermedia\")","v":"Tiene pendiente por aprobar Contabilidad Financiera Intermedia"},null,null,null,null,null,"ECON-1403",null,{"$f":"MAX(U26:W26)","v":0},null,null,null,"ECON-1413",null,{"$f":"MAX(AA26:AC26)","v":0},null,null,null,{"$f":"IF(OR(AND(ISNUMBER(U26),U26>=3),AND(ISNUMBER(V26),V26>=3),AND(ISNUMBER(W26),W26>=3)),\"Puede cursar Microeconomía\",\"Tiene pendiente por aprobar Fundamentos de Economía\")","v":"Tiene pendiente por aprobar Fundamentos de Economía"}]
[null,null,"Contabilidad Financiera Intermedia ",null,null,null,null,null,"Contabilidad Financiera Avanzada",null,null,null,null,null,null,null,null,null,null,null,"Fundamentos de Economía",null,null,null,null,null,"Microeconomía"]
[]
[null,null,{"$f":"IF(CPUL!C31=\"\",\"\",CPUL!C31)","v":""},{"$f":"IF(CPUL!D31=\"\",\"\",CPUL!D31)","v":""},{"$f":"IF(CPUL!E31=\"\",\"\",CPUL!E31)","v":""},null,null,null,{"$f":"IF(CPUL!O47=\"\",\"\",CPUL!O47)","v":""},{"$f":"IF(CPUL!P47=\"\",\"\",CPUL!P47)","v":""},{"$f":"IF(CPUL!Q47=\"\",\"\",CPUL!Q47)","v":""},null,null,null,null,null,null,null,null,null,{"$f":"IF(CPUL!K57=\"\",\"\",CPUL!K57)","v":""},{"$f":"IF(CPUL!L57=\"\",\"\",CPUL!L57)","v":""},{"$f":"IF(CPUL!M57=\"\",\"\",CPUL!M57)","v":""},null,null,null,{"$f":"IF(CPUL!O57=\"\",\"\",CPUL!O57)","v":""},{"$f":"IF(CPUL!P57=\"\",\"\",CPUL!P57)","v":""},{"$f":"IF(CPUL!Q57=\"\",\"\",CPUL!Q57)","v":""}]
[]
[null,null,"CPUL-1433",null,{"$f":"MAX(C31:E31)","v":0},null,null,null,"CPUL-1703",null,{"$f":"MAX(I31:K31)","v":0},null,null,null,{"$f":"IF(OR(AND(ISNUMBER(C31),C31>=3),AND(ISNUMBER(D31),D31>=3),AND(ISNUMBER(E31),E31>=3)),\"Puede cursar Costos Modernos\",\"Tiene pendiente por aprobar Contabilidad de Costos\")","v":"Tiene pendiente por aprobar Contabilidad de Costos"},null,null,null,null,null,"ECON-1403",null,{"$f":"MAX(U31:W31)","v":0},null,null,null,"ECON-1443",null,{"$f":"MAX(AA31:AC31)","v":0},null,null,null,{"$f":"IF(OR(AND(ISNUMBER(U31),U31>=3),AND(ISNUMBER(V31),V31>=3),AND(ISNUMBER(W31),W31>=3)),\"Puede cursar Macroeconomía\",\"Tiene pendiente por aprobar Fundamentos de Economía\")","v":"Tiene pendiente por aprobar Fundamentos de Economía"}]
[null,null,"Contabilidad de Costos",null,null,null,null,null,"Costos Modernos",null,null,null,null,null,null,null,null,null,null,null,"Fundamentos de Economía",null,null,null,null,null,"Macroeconomía"]
[]
[null,null,{"$f":"IF(CPUL!G31=\"\",\"\",CPUL!G31)","v":""},{"$f":"IF(CPUL!H31=\"\",\"\",CPUL!H31)","v":""},{"$f":"IF(CPUL!I31=\"\",\"\",CPUL!I31)","v":""},null,null,null,{"$f":"IF(CPUL!O52=\"\",\"\",CPUL!O52)","v":""},{"$f":"IF(CPUL!P52=\"\",\"\",CPUL!P52)","v":""},{"$f":"IF(CPUL!Q52=\"\",\"\",CPUL!Q52)","v":""},null,null,null,null,null,null,null,null,null,{"$f":"IF(CPUL!K57=\"\",\"\",CPUL!K57)","v":""},{"$f":"IF(CPUL!L57=\"\",\"\",CPUL!L57)","v":""},{"$f":"IF(CPUL!M57=\"\",\"\",CPUL!M57)","v":""},null,null,null,{"$f":"IF(CPUL!C62=\"\",\"\",CPUL!C62)","v":""},{"$f":"IF(CPUL!D62=\"\",\"\",CPUL!D62)","v":""},{"$f":"IF(CPUL!E62=\"\",\"\",CPUL!E62)","v":""}]
[]
[null,null,"CPUL-1433",null,{"$f":"MAX(C36:E36)","v":0},null,null,null,"CPUL-1713",null,{"$f":"MAX(I36:K36)","v":0},null,null,null,{"$f":"IF(OR(AND(ISNUMBER(C36),C36>=3),AND(ISNUMBER(D36),D36>=3),AND(ISNUMBER(E36),E36>=3)),\"Puede cursar Contabilidad Gerencial I\",\"Tiene pendiente por aprobar Contabilidad de Costos\")","v":"Tiene pendiente por aprobar Contabilidad de Costos"},null,null,null,null,null,"CPUL-1403",null,{"$f":"MAX(U36:W36)","v":0},null,null,null,"FNEG-1413",null,{"$f":"MAX(AA36:AC36)","v":0},null,null,null,{"$f":"IF(OR(AND(ISNUMBER(U36),U36>=3),AND(ISNUMBER(V36),V36>=3),AND(ISNUMBER(W36),W36>=3)),\"Puede cursar Finanzas I\",\"Tiene pendiente por aprobar Contabilidad Financiera\")","v":"Tiene pendiente por aprobar Contabilidad Financiera"}]
[null,null,"Contabilidad de Costos",null,null,null,null,null,"Contabilidad Gerencial I",null,null,null,null,null,null,null,null,null,null,null,"Contabilidad Financiera",null,null,null,null,null,"Finanzas I"]
[]
[null,null,{"$f":"IF(CPUL!G31=\"\",\"\",CPUL!G31)","v":""},{"$f":"IF(CPUL!H31=\"\",\"\",CPUL!H31)","v":""},{"$f":"IF(CPUL!I31=\"\",\"\",CPUL!I31)","v":""},null,null,null,{"$f":"IF(CPUL!C52=\"\",\"\",CPUL!C52)","v":""},{"$f":"IF(CPUL!D52=\"\",\"\",CPUL!D52)","v":""},{"$f":"IF(CPUL!E52=\"\",\"\",CPUL!E52)","v":""},null,null,null,null,null,null,null,null,null,{"$f":"IF(CPUL!S26=\"\",\"\",CPUL!S26)","v":""},{"$f":"IF(CPUL!T26=\"\",\"\",CPUL!T26)","v":""},{"$f":"IF(CPUL!U26=\"\",\"\",CPUL!U26)","v":""},null,null,null,{"$f":"IF(CPUL!G47=\"\",\"\",CPUL!G47)","v":""},{"$f":"IF(CPUL!H47=\"\",\"\",CPUL!H47)","v":""},{"$f":"IF(CPUL!I47=\"\",\"\",CPUL!I47)","v":""}]
[]
[null,null,"CPUL-1713",null,{"$f":"MAX(C41:E41)","v":0},null,null,null,"CPUL-1723",null,{"$f":"MAX(I41:K41)","v":0},null,null,null,{"$f":"IF(OR(AND(ISNUMBER(C41),C41>=3),AND(ISNUMBER(D41),D41>=3),AND(ISNUMBER(E41),E41>=3)),\"Puede cursar Contabilidad Gerencial II\",\"Tiene pendiente por aprobar Contabilidad Gerencial I\")","v":"Tiene pendiente por aprobar Contabilidad Gerencial I"},null,null,null,null,null,"CPUL-1433",null,{"$f":"MAX(U41:W41)","v":0},null,null,null,"FNEG-3283",null,{"$f":"MAX(AA41:AC41)","v":0},null,null,null,{"$f":"IF(OR(AND(ISNUMBER(U41),U41>=3),AND(ISNUMBER(V41),V41>=3),AND(ISNUMBER(W41),W41>=3)),\"Puede cursar Análisis Financiero y Proyecciones\",\"Tiene pendiente por aprobar Contabilidad de Costos\")","v":"Tiene pendiente por aprobar Contabilidad de Costos"}]
[null,null,"Contabilidad Gerencial I",null,null,null,null,null,"Contabilidad Gerencial II",null,null,null,null,null,null,null,null,null,null,null,"Contabilidad de Costos",null,null,null,null,null,"Análisis Financiero y Proyecciones"]
[]
[null,null,{"$f":"IF(CPUL!C52=\"\",\"\",CPUL!C52)","v":""},{"$f":"IF(CPUL!D52=\"\",\"\",CPUL!D52)","v":""},{"$f":"IF(CPUL!E52=\"\",\"\",CPUL!E52)","v":""},null,null,null,{"$f":"IF(CPUL!G52=\"\",\"\",CPUL!G52)","v":""},{"$f":"IF(CPUL!H52=\"\",\"\",CPUL!H52)","v":""},{"$f":"IF(CPUL!I52=\"\",\"\",CPUL!I52)","v":""},null,null,null,null,null,null,null,null,null,{"$f":"IF(CPUL!G31=\"\",\"\",CPUL!G31)","v":""},{"$f":"IF(CPUL!H31=\"\",\"\",CPUL!H31)","v":""},{"$f":"IF(CPUL!I31=\"\",\"\",CPUL!I31)","v":""},null,null,null,{"$f":"IF(CPUL!K47=\"\",\"\",CPUL!K47)","v":""},{"$f":"IF(CPUL!L47=\"\",\"\",CPUL!L47)","v":""},{"$f":"IF(CPUL!M47=\"\",\"\",CPUL!M47)","v":""}]
[]
[null,null,"CPUL-1413",null,{"$f":"MAX(C46:E46)","v":0},null,null,null,"CPUL-1733",null,{"$f":"MAX(I46:K46)","v":0},null,null,null,{"$f":"IF(OR(AND(ISNUMBER(C46),C46>=3),AND(ISNUMBER(D46),D46>=3),AND(ISNUMBER(E46),E46>=3)),\"Puede cursar Teoría Contable\",\"Tiene pendiente por aprobar Contabilidad Financiera Intermedia\")","v":"Tiene pendiente por aprobar Contabilidad Financiera Intermedia"},null,null,null,null,null,"CBAS-2603",null,{"$f":"MAX(U46:W46)","v":0},null,null,null,"CBAS-2613",null,{"$f":"MAX(AA46:AC46)","v":0},null,null,null,{"$f":"IF(OR(AND(ISNUMBER(U46),U46>=3),AND(ISNUMBER(V46),V46>=3),AND(ISNUMBER(W46),W46>=3)),\"Puede cursar Estadística II\",\"Tiene pendiente por aprobarEstadística I\")","v":"Tiene pendiente por aprobarEstadística I"}]
[null,null,"Contabilidad Financiera Intermedia",null,null,null,null,null,"Teoría Contable",null,null,null,null,null,null,null,null,null,null,null,"Estadistica I",null,null,null,null,null,"Estadística II"]
[]
[null,null,{"$f":"IF(CPUL!C31=\"\",\"\",CPUL!C31)","v":""},{"$f":"IF(CPUL!D31=\"\",\"\",CPUL!D31)","v":""},{"$f":"IF(CPUL!E31=\"\",\"\",CPUL!E31)","v":""},null,null,null,{"$f":"IF(CPUL!G57=\"\",\"\",CPUL!G57)","v":""},{"$f":"IF(CPUL!H57=\"\",\"\",CPUL!H57)","v":""},{"$f":"IF(CPUL!I57=\"\",\"\",CPUL!I57)","v":""},null,null,null,null,null,null,null,null,null,{"$f":"IF(CPUL!O16=\"\",\"\",CPUL!O16)","v":""},{"$f":"IF(CPUL!P16=\"\",\"\",CPUL!P16)","v":""},{"$f":"IF(CPUL!Q16=\"\",\"\",CPUL!Q16)","v":""},null,null,null,{"$f":"IF(CPUL!Y48=\"\",\"\",CPUL!Y48)","v":""},{"$f":"IF(CPUL!Z48=\"\",\"\",CPUL!Z48)","v":""},{"$f":"IF(CPUL!AA48=\"\",\"\",CPUL!AA48)","v":""}]
[]
[null,null,"CPUL-1763",null,{"$f":"MAX(C51:E51)","v":0},null,null,null,"CPUL-1773",null,{"$f":"MAX(I51:K51)","v":0},null,null,null,{"$f":"IF(OR(AND(ISNUMBER(C51),C51>=3),AND(ISNUMBER(D51),D51>=3),AND(ISNUMBER(E51),E51>=3)),\"Puede cursar Impuestos II\",\"Tiene pendiente por aprobar Impuestos I\")","v":"Tiene pendiente por aprobar Impuestos I"},null,null,null,null,null,"CHUM-1933",null,{"$f":"MAX(U51:W51)","v":0},null,null,null,"CHUM-1943",null,{"$f":"MAX(AA51:AC51)","v":0},null,null,null,{"$f":"IF(OR(AND(ISNUMBER(U51),U51>=3),AND(ISNUMBER(V51),V51>=3),AND(ISNUMBER(W51),W51>=3)),\"Puede cursar Inglés V\",\"Tiene pendiente por Inglés IV\")","v":"Tiene pendiente por Inglés IV"}]
[null,null,"Impuestos I",null,null,null,null,null,"Impuestos II",null,null,null,null,null,null,null,null,null,null,null,"Inglés IV",null,null,null,null,null,"Inglés V"]
[]
[null,null,{"$f":"IF(CPUL!O31=\"\",\"\",CPUL!O31)","v":""},{"$f":"IF(CPUL!P31=\"\",\"\",CPUL!P31)","v":""},{"$f":"IF(CPUL!Q31=\"\",\"\",CPUL!Q31)","v":""},null,null,null,{"$f":"IF(CPUL!O62=\"\",\"\",CPUL!O62)","v":""},{"$f":"IF(CPUL!P62=\"\",\"\",CPUL!P62)","v":""},{"$f":"IF(CPUL!Q62=\"\",\"\",CPUL!Q62)","v":""},null,null,null,null,null,null,null,null,null,{"$f":"IF(CPUL!O21=\"\",\"\",CPUL!O21)","v":""},{"$f":"IF(CPUL!P21=\"\",\"\",CPUL!P21)","v":""},{"$f":"IF(CPUL!Q21=\"\",\"\",CPUL!Q21)","v":""},null,null,null,{"$f":"IF(CPUL!Y37=\"\",\"\",CPUL!Y37)","v":""},{"$f":"IF(CPUL!Z37=\"\",\"\",CPUL!Z37)","v":""},{"$f":"IF(CPUL!AA37=\"\",\"\",CPUL!AA37)","v":""}]
[]
[null,null,"CPUL-1783",null,{"$f":"MAX(C56:E56)","v":0},null,null,null,"CPUL-2723",null,{"$f":"MAX(I56:K56)","v":0},null,null,null,{"$f":"IF(OR(AND(ISNUMBER(C56),C56>=3),AND(ISNUMBER(D56),D56>=3),AND(ISNUMBER(E56),E56>=3)),\"Puede cursar Revisoría Fiscal\",\"Tiene pendiente por aprobar Auditoría Financiera\")","v":"Tiene pendiente por aprobar Auditoría Financiera"},null,null,null,null,null,"CHUM-1943",null,{"$f":"MAX(U56:W56)","v":0},null,null,null,"CHUM-1953",null,{"$f":"MAX(AA56:AC56)","v":0},null,null,null,{"$f":"IF(OR(AND(ISNUMBER(U56),U56>=3),AND(ISNUMBER(V56),V56>=3),AND(ISNUMBER(W56),W56>=3)),\"Puede cursar Inglés VI\",\"Tiene pendiente por aprobar Inglés V\")","v":"Tiene pendiente por aprobar Inglés V"}]
[null,null,"Auditoría Financiera",null,null,null,null,null,"Revisoría Fiscal",null,null,null,null,null,null,null,null,null,null,null,"Inglés V",null,null,null,null,null,"Inglés VI"]
[]
[null,null,{"$f":"IF(CPUL!S31=\"\",\"\",CPUL!S31)","v":""},{"$f":"IF(CPUL!T31=\"\",\"\",CPUL!T31)","v":""},{"$f":"IF(CPUL!U31=\"\",\"\",CPUL!U31)","v":""},null,null,null,{"$f":"IF(CPUL!C57=\"\",\"\",CPUL!C57)","v":""},{"$f":"IF(CPUL!D57=\"\",\"\",CPUL!D57)","v":""},{"$f":"IF(CPUL!E57=\"\",\"\",CPUL!E57)","v":""},null,null,null,null,null,null,null,null,null,{"$f":"IF(CPUL!Y37=\"\",\"\",CPUL!Y37)","v":""},{"$f":"IF(CPUL!Z37=\"\",\"\",CPUL!Z37)","v":""},{"$f":"IF(CPUL!AA37=\"\",\"\",CPUL!AA37)","v":""},null,null,null,{"$f":"IF(CPUL!Y42=\"\",\"\",CPUL!Y42)","v":""},{"$f":"IF(CPUL!Z42=\"\",\"\",CPUL!Z42)","v":""},{"$f":"IF(CPUL!AA42=\"\",\"\",CPUL!AA42)","v":""}]

{"sheet":"Electivas","index":2,"n_rows":38,"n_cols":25,"rows_kept":38,"cut":false,"hidden":false,"merged":[[34,9,34,10],[35,9,36,11],[36,5,36,7],[29,9,29,10],[30,9,31,11],[31,5,31,7],[9,1,9,25],[25,9,26,11],[25,22,26,24],[12,15,12,20],[12,2,12,7],[16,18,16,20],[21,18,21,20],[26,18,26,20],[16,5,16,7],[21,5,21,7],[26,5,26,7],[14,22,14,23],[15,22,16,24],[19,22,19,23],[20,22,21,24],[24,22,24,23],[14,9,14,10],[15,9,16,11],[19,9,19,10],[20,9,21,11],[24,9,24,10]]}
[]
[]
[]
[]
[]
[]
[]
[]
[]
[null,"Lleva el control de tu avance curricular"]
[]
[]
[null,null,"ELECTIVAS",null,null,null,null,null,null,null,null,null,null,null,null,"ELECTIVAS SOCIO HUMANÍSTICAS"]
[]
[null,null,null,null,null,null,null,null,null,{"$f":"C16","v":"CPUL-NP12"},null,{"$f":"MAX(J18:L18)","v":0},null,null,null,null,null,null,null,null,null,null,{"$f":"P16","v":"CPUL-H012"},null,{"$f":"MAX(W18:Y18)","v":0}]
[null,null,"CPUL-NP12",null,null,null,null,null,null,{"$f":"IF(F17=\"\",\"Electiva I\",F17)","v":"Electiva I"},null,null,null,null,null,"CPUL-H012",null,null,null,null,null,null,{"$f":"IF(S17=\"\",\"Electiva Socio humanística I\",S17)","v":"Electiva Socio humanística I"}]
[null,null,"Electiva I",null,null,null,null,null,null,null,null,null,null,null,null,"Electiva Socio humanística I"]
[null,null,null,null,null,null,null,null,null,{"$f":"IF(CPUL!C41=\"\",\"\",CPUL!C41)","v":""},{"$f":"IF(CPUL!D41=\"\",\"\",CPUL!D41)","v":""},{"$f":"IF(CPUL!E41=\"\",\"\",CPUL!E41)","v":""},null,null,null,null,null,null,null,null,null,null,{"$f":"IF(CPUL!O36=\"\",\"\",CPUL!O36)","v":""},{"$f":"IF(CPUL!P36=\"\",\"\",CPUL!P36)","v":""},{"$f":"IF(CPUL!Q36=\"\",\"\",CPUL!Q36)","v":""}]
[]
[null,null,null,null,null,null,null,null,null,{"$f":"C21","v":"CPUL-NP22"},null,{"$f":"MAX(J23:L23)","v":0},null,null,null,null,null,null,null,null,null,null,{"$f":"P21","v":"CPUL-H022"},null,{"$f":"MAX(W23:Y23)","v":0}]
[null,null,"CPUL-NP22",null,null,null,null,null,null,{"$f":"IF(F22=\"\",\"Electiva II\",F22)","v":"Electiva II"},null,null,null,null,null,"CPUL-H022",null,null,null,null,null,null,{"$f":"IF(S22=\"\",\"Electiva Socio humanística II\",S22)","v":"Electiva Socio humanística II"}]
[null,null,"Electiva II",null,null,null,null,null,null,null,null,null,null,null,null,"Electiva Socio humanística II"]
[null,null,null,null,null,null,null,null,null,{"$f":"IF(CPUL!G41=\"\",\"\",CPUL!G41)","v":""},{"$f":"IF(CPUL!H41=\"\",\"\",CPUL!H41)","v":""},{"$f":"IF(CPUL!I41=\"\",\"\",CPUL!I41)","v":""},null,null,null,null,null,null,null,null,null,null,{"$f":"IF(CPUL!S36=\"\",\"\",CPUL!S36)","v":""},{"$f":"IF(CPUL!T36=\"\",\"\",CPUL!T36)","v":""},{"$f":"IF(CPUL!U36=\"\",\"\",CPUL!U36)","v":""}]
[]
[null,null,null,null,null,null,null,null,null,{"$f":"C26","v":"CPUL-NP32"},null,{"$f":"MAX(J28:L28)","v":0},null,null,null,null,null,null,null,null,null,null,{"$f":"P26","v":"CPUL-H032"},null,{"$f":"MAX(W28:Y28)","v":0}]
[null,null,"CPUL-NP32",null,null,null,null,null,null,{"$f":"IF(F27=\"\",\"Electiva III\",F27)","v":"Electiva III"},null,null,null,null,null,"CPUL-H032",null,null,null,null,null,null,{"$f":"IF(S27=\"\",\"Electiva Socio humanística III\",S27)","v":"Electiva Socio humanística III"}]
[null,null,"Electiva III",null,null,null,null,null,null,null,null,null,null,null,null,"Electiva Socio humanística III"]
[null,null,null,null,null,null,null,null,null,{"$f":"IF(CPUL!K41=\"\",\"\",CPUL!K41)","v":""},{"$f":"IF(CPUL!L41=\"\",\"\",CPUL!L41)","v":""},{"$f":"IF(CPUL!M41=\"\",\"\",CPUL!M41)","v":""},null,null,null,null,null,null,null,null,null,null,{"$f":"IF(CPUL!Y26=\"\",\"\",CPUL!Y26)","v":""},{"$f":"IF(CPUL!Z26=\"\",\"\",CPUL!Z26)","v":""},{"$f":"IF(CPUL!AA26=\"\",\"\",CPUL!AA26)","v":""}]
[]
[null,null,null,null,null,null,null,null,null,{"$f":"C31","v":"CPUL-NP42"},null,{"$f":"MAX(J33:L33)","v":0}]
[null,null,"CPUL-NP42",null,null,null,null,null,null,{"$f":"IF(F32=\"\",\"ElectivaIV\",F32)","v":"ElectivaIV"}]
[null,null,"Electiva IV"]
[null,null,null,null,null,null,null,null,null,{"$f":"IF(CPUL!O41=\"\",\"\",CPUL!O41)","v":""},{"$f":"IF(CPUL!P41=\"\",\"\",CPUL!P41)","v":""},{"$f":"IF(CPUL!Q41=\"\",\"\",CPUL!Q41)","v":""}]
[]
[null,null,null,null,null,null,null,null,null,{"$f":"C36","v":"CPUL-NP52"},null,{"$f":"MAX(J38:L38)","v":0}]
[null,null,"CPUL-NP52",null,null,null,null,null,null,{"$f":"IF(F37=\"\",\"Electiva V\",F37)","v":"Electiva V"}]
[null,null,"Electiva V"]
[null,null,null,null,null,null,null,null,null,{"$f":"IF(CPUL!S41=\"\",\"\",CPUL!S41)","v":""},{"$f":"IF(CPUL!T41=\"\",\"\",CPUL!T41)","v":""},{"$f":"IF(CPUL!U41=\"\",\"\",CPUL!U41)","v":""}]

{"sheet":"Hoja1","index":3,"n_rows":8,"n_cols":8,"rows_kept":8,"cut":false,"hidden":true,"merged":[]}
["Código","Módulo",null,null,null,null,"Código","Módulo"]
["TPOT-1013","Análisis de Precios y Mercados",null,null,null,null,"CBAS-1143","Ciencias Experimentales "]
["TPCO-1013","Control de Inventarios ",null,null,null,null,"CHUM-1103","Comprensión en Inglés "]
["TCFV-1223","Informes Contables ",null,null,null,null,"CHUM-1113","Escritura en Inglés "]
["TPCO-1233","Pagos Depósitos y Retiros"]
["TCFV-1053","Práctica Laboral Tecnólogo"]
["TPCO-1113","Registros Sector Público "]
["TPCO-1123","Registros Sector Solidario "]

{"sheet":"Cómo voy","index":4,"n_rows":49,"n_cols":23,"rows_kept":49,"cut":false,"hidden":false,"merged":[[9,1,9,24],[12,7,12,8],[12,3,12,6],[46,3,46,7]]}
[]
[]
[]
[]
[]
[]
[]
[]
[]
[null,"Lleva el control de tu avance curricular"]
[]
[]
[null,null,"Código","Módulo",null,null,null,"Prerrequisitos",null,"Créditos ","Estado",null,null,null,"Código","Módulo",null,null,null,"Prerrequisitos",null,"Créditos ","Estado"]
[null,null,"CPUL-1783","Auditoria Financiera",null,null,null,"CPUL-1833",{"$f":"MAX(CPUL!$C$36:$E$36)","v":0},3,{"$f":"MAX(CPUL!$S$31:$U$31)","v":0},null,null,null,"AEMP-1403","Teoría Administrativa",null,null,null,null,null,3,{"$f":"MAX(CPUL!$K$62:$M$62)","v":0}]
[null,null,"CPUL-1833","Auditoria Interna",null,null,null,"CPUL-1423",{"$f":"MAX(CPUL!$O$47:$Q$47)","v":0},3,{"$f":"MAX(CPUL!$C$36:$E$36)","v":0},null,null,null,"AEMP-1733","Gestión de Proyectos",null,null,null,"AEMP-1713",{"$f":"MAX(CPUL!$K$26:$M$26)","v":0},3,{"$f":"MAX(CPUL!$G$62:$I$62)","v":0}]
[null,null,"CBAS-2413","Cálculo I",null,null,null,null,null,4,{"$f":"MAX(CPUL!$G$16:$I$16)","v":0},null,null,null,"CPUL-1423","Contabilidad Financiera Avanzada",null,null,null,"CPUL-1413",{"$f":"MAX(CPUL!$C$31:$E$31)","v":0},3,{"$f":"MAX(CPUL!$O$47:$Q$47)","v":0}]
[null,null,"CBAS-2423","Cálculo II",null,null,null,"CBAS-2413",{"$f":"MAX(CPUL!$G$16:$I$16)","v":0},4,{"$f":"MAX(CPUL!$K$16:$M$16)","v":0},null,null,null,"CPUL-1703","Costos Modernos",null,null,null,"CPUL-1433",{"$f":"MAX(CPUL!$G$31:$I$31)","v":0},3,{"$f":"MAX(CPUL!$O$52:$Q$52)","v":0}]
[null,null,"CHUM-1213","Composición de Textos Cientificos",null,null,null,null,null,3,{"$f":"MAX(CPUL!$C$26:$E$26)","v":0},null,null,null,"CPUL-1713","Contabilidad Gerencial I",null,null,null,"CPUL-1433",{"$f":"MAX(CPUL!$G$31:$I$31)","v":0},3,{"$f":"MAX(CPUL!$C$52:$E$52)","v":0}]
[null,null,"CPUL-1433","Contabilidad de Costos",null,null,null,"CPUL-1403",{"$f":"MAX(CPUL!$S$26:$U$26)","v":0},3,{"$f":"MAX(CPUL!$G$31:$I$31)","v":0},null,null,null,"CPUL-1723","Contabilidad Gerencial II",null,null,null,"CPUL-1713",{"$f":"MAX(CPUL!$C$52:$E$52)","v":0},3,{"$f":"MAX(CPUL!$G$52:$I$52)","v":0}]
[null,null,"CPUL-1403","Contabilidad Financiera",null,null,null,null,null,3,{"$f":"MAX(CPUL!$S$26:$U$26)","v":0},null,null,null,"CPUL-1733","Teoría Contable",null,null,null,"CPUL-1413",{"$f":"MAX(CPUL!$C$31:$E$31)","v":0},3,{"$f":"MAX(CPUL!$G$57:$I$57)","v":0}]
[null,null,"CPUL-1413","Contabilidad Financiera Intermedia",null,null,null,"CPUL-1403",{"$f":"MAX(CPUL!$S$26:$U$26)","v":0},3,{"$f":"MAX(CPUL!$C$31:$E$31)","v":0},null,null,null,"CPUL-1773","Impuestos II",null,null,null,"CPUL-1763",{"$f":"MAX(CPUL!$O$31:$Q$31)","v":0},3,{"$f":"MAX(CPUL!$O$62:$Q$62)","v":0}]
[null,null,"CPUL-2613","Fundamentos de Contabilidad Internacional",null,null,null,null,null,3,{"$f":"MAX(CPUL!$O$36:$Q$36)","v":0},null,null,null,"CPUL-2723","Revisoría Fiscal",null,null,null,"CPUL-1783",{"$f":"MAX(CPUL!$S$31:$U$31)","v":0},3,{"$f":"MAX(CPUL!$C$57:$E$57)","v":0}]
[null,null,"CPUL-2803","Derecho Comercial",null,null,null,null,null,3,{"$f":"MAX(CPUL!$G$36:$I$36)","v":0},null,null,null,"CPUL-2792","Contabilidad Internacional",null,null,null,"FNEG-3283",{"$f":"MAX(CPUL!$K$47:$M$47)","v":0},3,{"$f":"MAX(CPUL!$K$52:$M$52)","v":0}]
[null,null,"CPUL-2813","Derecho Laboral",null,null,null,null,null,3,{"$f":"MAX(CPUL!$K$36:$M$36)","v":0},null,null,null,"ECON-1403","Fundamentos de Economía",null,null,null,null,null,3,{"$f":"MAX(CPUL!$K$57:$M$57)","v":0}]
[null,null,"CBAS-1103","Cátedra de Desarrollo Universitario",null,null,null,null,null,0,{"$f":"MAX(CPUL!$C$16:$E$16)","v":0},null,null,null,"ECON-1413","Microeconomía",null,null,null,"ECON-1403",{"$f":"MAX(CPUL!$K$57:$M$57)","v":0},3,{"$f":"MAX(CPUL!$O$57:$Q$57)","v":0}]
[null,null,"CPUL-NP12","Electiva I",null,null,null,null,null,3,{"$f":"MAX(CPUL!$C$41:$E$41)","v":0},null,null,null,"ECON-1443","Macroeconomía",null,null,null,"ECON-1403",{"$f":"MAX(CPUL!$K$57:$M$57)","v":0},3,{"$f":"MAX(CPUL!$C$62:$E$62)","v":0}]
[null,null,"CPUL-NP22","Electiva II",null,null,null,null,null,3,{"$f":"MAX(CPUL!$G$41:$I$41)","v":0},null,null,null,"FNEG-1243","Elect de Informática Aplicada",null,null,null,null,null,3,{"$f":"MAX(CPUL!$C$47:$E$47)","v":0}]
[null,null,"CPUL-NP32","Electiva III",null,null,null,null,null,3,{"$f":"MAX(CPUL!$K$41:$M$41)","v":0},null,null,null,"FNEG-1413","Finanzas I",null,null,null,"CPUL-1403",{"$f":"MAX(CPUL!$S$26:$U$26)","v":0},3,{"$f":"MAX(CPUL!$G$47:$I$47)","v":0}]
[null,null,"CPUL-NP42","Electiva IV",null,null,null,null,null,3,{"$f":"MAX(CPUL!$O$41:$Q$41)","v":0},null,null,null,"FNEG-3283","Análisis Financiero y Proyecciones",null,null,null,"CPUL-1433",{"$f":"MAX(CPUL!$G$31:$I$31)","v":0},2,{"$f":"MAX(CPUL!$K$47:$M$47)","v":0}]
[null,null,"CPUL-NP52","Electiva V",null,null,null,null,null,3,{"$f":"MAX(CPUL!$S$41:$U$41)","v":0}]
[null,null,"CPUL-H012","Electiva Socio humanistica I",null,null,null,null,null,2,{"$f":"MAX(CPUL!$O$36:$Q$36)","v":0}]
[null,null,"CBAS-2603","Estadistica I",null,null,null,null,null,3,{"$f":"MAX(CPUL!$O$16:$Q$16)","v":0},null,null,null,"Código","Módulo",null,null,null,"Prerrequisitos",null,"Créditos ","Estado"]
[null,null,"CHUM-1333","Ética y Profesionalismo",null,null,null,null,null,2,{"$f":"MAX(CPUL!$G$26:$I$26)","v":0},null,null,null,"CHUM-1323","Constitución Política y Civilidad",null,null,null,null,null,2,{"$f":"MAX(CPUL!$Y$21:$AA$21)","v":0}]
[null,null,"CHUM-1203","Habilidades de Pensamiento",null,null,null,null,null,3,{"$f":"MAX(CPUL!$S$21:$U$21)","v":0},null,null,null,"CPUL-H022","Electiva Socio humanistica II",null,null,null,null,null,2,{"$f":"MAX(CPUL!$Y$26:$AA$26)","v":0}]
[null,null,"CPUL-1763","Impuestos I",null,null,null,null,null,3,{"$f":"MAX(CPUL!$O$31:$Q$31)","v":0},null,null,null,"CPUL-H032","Electiva Socio humanistica III",null,null,null,null,null,2,{"$f":"MAX(CPUL!Y31:AA31)","v":0}]
[null,null,"CHUM-1903","Ingles I",null,null,null,null,null,2,{"$f":"MAX(CPUL!$C$21:$E$21)","v":0}]
[null,null,"CHUM-1913","Ingles II",null,null,null,"CHUM-1903",{"$f":"MAX(CPUL!$C$21:$E$21)","v":0},2,{"$f":"MAX(CPUL!$G$21:$I$21)","v":0}]
[null,null,"CHUM-1923","Inglés III",null,null,null,"CHUM-1913",{"$f":"MAX(CPUL!$G$21:$I$21)","v":0},2,{"$f":"MAX(CPUL!$K$21:$M$21)","v":0},null,null,null,"Código","Módulo",null,null,null,"Prerrequisitos",null,"Créditos ","Estado"]
[null,null,"CHUM-1933","Inglés IV",null,null,null,"CHUM-1923",{"$f":"MAX(CPUL!$K$21:$M$21)","v":0},2,{"$f":"MAX(CPUL!$O$21:$Q$21)","v":0},null,null,null,"CBAS-2613","Estadística II",null,null,null,"CBAS-2603",{"$f":"MAX(CPUL!$O$16:$Q$16)","v":0},3,{"$f":"MAX(CPUL!$Y$48:$AA$48)","v":0}]
[null,null,"AEMP-1713","Liderazgo y Emprendimiento",null,null,null,null,null,3,{"$f":"MAX(CPUL!$K$26:$M$26)","v":0}]
[null,null,"FNEG-3183","Matemáticas Financieras",null,null,null,"CPUL-1403",{"$f":"MAX(CPUL!$S$26:$U$26)","v":0},2,{"$f":"MAX(CPUL!$S$16:$U$16)","v":0}]
[null,null,"CPUL-1743","Presupuesto",null,null,null,"CPUL-1713",{"$f":"MAX(CPUL!$C$52:$E$52)","v":0},3,{"$f":"MAX(CPUL!$K$31:$M$31)","v":0},null,null,null,"Código","Módulo",null,null,null,"Prerrequisitos",null,"Créditos ","Estado"]
[null,null,"AEMP-1413","Procesos Administrativos",null,null,null,"AEMP-1403",{"$f":"MAX(CPUL!$K$62:$M$62)","v":0},3,{"$f":"MAX(CPUL!$O$26:$Q$26)","v":0},null,null,null,"CHUM-1943","Inglés V",null,null,null,"CHUM-1933",{"$f":"MAX(CPUL!$O$21:$Q$21)","v":0},2,{"$f":"MAX(CPUL!$Y$37:$AA$37)","v":0}]
[null,null,null,null,null,null,null,null,null,null,null,null,null,null,"CHUM-1953","Inglés VI",null,null,null,"CHUM-1943",{"$f":"MAX(CPUL!$Y$37:$AA$37)","v":0},2,{"$f":"MAX(CPUL!$Y$42:$AA$42)","v":0}]
[]
[]
[null,null,4,"Módulo / Prerrequisito aprobado",null,null,null,null,null,null,null,null,null,null,"Código","Módulo",null,null,null,"Prerrequisitos",null,"Créditos ","Estado"]
[null,null,2,"Módulo / Prerrequisito reprobado",null,null,null,null,null,null,null,null,null,null,"CPUL-1903","Práctica Profesional",null,null,null,null,null,9,{"$f":"MAX(CPUL!$Y$54:$AA$54)","v":0}]
[null,null,0,"Módulo / Prerrequisito pendiente por cursar",null,null,null,null,null,null,null,null,null,null,null,"Trabajo de Grado / Minor",null,null,null,null,null,0,{"$f":"MAX(CPUL!$Y$59:$AA$59)","v":0}]